fUSD/lending_fUSD_20250616
["ID","MTS","AMOUNT","RATE_DAILY","PERIOD"]
[366202194,1750115445163,-490.0,0.00016245,2]
[366202195,1750115445173,-925.59,0.00016245,2]
[366202196,1750115445183,-544.3,0.00016245,2]
[366202197,1750115445193,-493.8591786,0.00016245,2]
[366202198,1750115445203,-490.0,0.00016245,2]
[366202199,1750115445213,-490.0,0.00016245,2]
[366202200,1750115445224,-490.0,0.00016245,2]
[366202201,1750115445234,-974.39,0.00016245,2]
[366202202,1750115445244,-490.0,0.00016245,2]
[366202203,1750115445254,-1060.52,0.00016245,2]
[366202204,1750115445264,-490.0,0.00016245,2]
[366202205,1750115445275,-490.0,0.00016245,2]
[366202206,1750115445289,-742.45,0.00016245,2]
[366202207,1750115445299,-490.0,0.00016245,2]
[366202208,1750115445309,-490.0,0.00016245,2]
[366202209,1750115445319,-515.07,0.00016245,2]
[366202210,1750115445635,-843.96,0.00016245,2]
[366202211,1750115445646,-310.76,0.00016245,2]
[366202212,1750115445656,-490.0,0.00016245,2]
[366202213,1750115445666,-490.0,0.00016245,2]
[366202214,1750115445676,-490.0,0.00016245,2]
[366202215,1750115445686,-490.0,0.00016245,2]
[366202216,1750115445696,-490.0,0.00016245,2]
[366202217,1750115445707,-582.41,0.00016245,2]
[366202218,1750115445719,-490.0,0.00016245,2]
[366202219,1750115445730,-515.78,0.00016245,2]
[366202220,1750115445740,-490.0,0.00016245,2]
[366202221,1750115445750,-490.0,0.00016245,2]
[366202222,1750115445760,-490.0,0.00016245,2]
[366202223,1750115445770,-490.0,0.00016245,2]
[366202224,1750115445780,-490.0,0.00016245,2]
[366202225,1750115445790,-490.0,0.00016245,2]
[366202226,1750115445800,-490.0,0.00016245,2]
[366202227,1750115445809,-490.0,0.00016245,2]
[366202228,1750115445819,-490.0,0.00016245,2]
[366202229,1750115445829,-490.0,0.00016245,2]
[366202230,1750115445839,-490.0,0.00016245,2]
[366202231,1750115445848,-490.0,0.00016245,2]
[366202232,1750115445858,-490.0,0.00016245,2]
[366202233,1750115445868,-490.0,0.00016245,2]
[366202234,1750115445878,-490.0,0.00016245,2]
[366202236,1750115445888,-690.32,0.00016245,2]
[366202237,1750115445897,-1153.55,0.00016245,2]
[366202238,1750115445908,-585.21060054,0.00016245,2]
[366202239,1750115445917,-490.0,0.00016245,2]
[366202240,1750115445927,-490.0,0.00016245,2]
[366202241,1750115445937,-490.0,0.00016245,2]
[366202242,1750115445948,-476.75,0.00016245,2]
[366202243,1750115445957,-662.01,0.00016245,2]
[366202244,1750115445967,-490.0,0.00016245,2]
[366202245,1750115445977,-3406.18,0.00016245,2]
[366202246,1750115445987,-490.0,0.00016245,2]
[366202247,1750115445996,-130.28708651,0.00016245,2]
[366202248,1750115446012,-359.71291349,0.00016245,2]
[366202249,1750115446021,-490.0,0.00016245,2]
[366202250,1750115446031,-603.19,0.00016245,2]
[366202251,1750115446041,-490.0,0.00016245,2]
[366202252,1750115446051,-162.18,0.00016245,2]
[366202253,1750115446061,-490.0,0.00016245,2]
[366202254,1750115446070,-490.0,0.00016245,2]
[366202255,1750115446079,-490.0,0.00016245,2]
[366202256,1750115446088,-490.0,0.00016245,2]
[366202257,1750115446099,-490.0,0.00016245,2]
[366202258,1750115446108,-490.0,0.00016245,2]
[366202259,1750115446118,-372.393729,0.00016245,2]
[366202260,1750115446128,-99.50335751,0.00016245,2]
[366202261,1750115446669,-1093.49157679,0.00015758,2]
[366202262,1750115446679,-390.49664249,0.00016245,2]
[366202263,1750115446689,-490.0,0.00016245,2]
[366202264,1750115446699,-607.79,0.00016245,2]
[366202265,1750115446708,-490.0,0.00016245,2]
[366202266,1750115446718,-439.05188072,0.00016245,2]
[366202267,1750115446730,-50.94811928,0.00016245,2]
[366202268,1750115446739,-490.0,0.00016245,2]
[366202269,1750115446749,-607.5,0.00016245,2]
[366202270,1750115446760,-490.0,0.00016245,2]
[366202271,1750115446770,-490.0,0.00016245,2]
[366202272,1750115446780,-490.0,0.00016245,2]
[366202273,1750115446791,-149.64967168,0.00016245,2]
[366202274,1750115446803,-340.35032832,0.00016245,2]
[366202275,1750115446813,-217.85705864,0.00016245,2]
[366202276,1750115446823,-100.9631528,0.00016245,2]
[366202277,1750115446835,-389.0368472,0.00016245,2]
[366202278,1750115446845,-490.0,0.00016245,2]
[366202279,1750115446855,-490.0,0.00016245,2]
[366202280,1750115446866,-490.0,0.00016245,2]
[366202281,1750115446875,-747.35,0.00016245,2]
[366202282,1750115446885,-1265.53,0.00016245,2]
[366202283,1750115446895,-490.0,0.00016245,2]
[366202284,1750115446907,-494.82343281,0.00016245,2]
[366202285,1750115446917,-519.51,0.00016245,2]
[366202286,1750115446926,-490.0,0.00016245,2]
[366202287,1750115446936,-490.0,0.00016245,2]
[366202288,1750115446945,-490.0,0.00016245,2]
[366202289,1750115446955,-490.0,0.00016245,2]
[366202290,1750115446965,-490.0,0.00016245,2]
[366202291,1750115446975,-1274.31,0.00016245,2]
[366202292,1750115446985,-490.0,0.00016245,2]
[366202293,1750115446995,-959.24,0.00016245,2]
[366202294,1750115447004,-240.67011999,0.00016245,2]
[366202295,1750115517197,150.0,0.00015263,7]
[366202296,1750115518904,500.0,0.00015068,2]
[366202297,1750115766146,584.0,0.000246,120]
[366202298,1750115793499,250.0,0.00015,2]
[366202299,1750115794974,1000.0,0.00015047,2]
[366202300,1750115861538,386.87,0.00013699,2]
[366202302,1750115907601,517.32,0.00015167,2]
[366202303,1750116025009,964.6,0.00015057,2]
[366202304,1750116249603,666.0,0.00015057,2]
[366202305,1750116282165,7300.06,0.00015064,2]
[366202306,1750116321645,150.0,0.00014048,2]
[366202308,1750116420208,302.0,0.00024658,120]
[366202309,1750116451770,171.58,0.00015084,2]
[366202317,1750116530165,708.5,0.00024657,120]
[366202331,1750116596956,1000.0,0.00015198,2]
[366202332,1750116597212,1000.0,0.00014667,2]
[366202337,1750116632252,-177.0,0.000157,2]
[366202338,1750116632276,-169.6209653,0.000157,2]
[366202339,1750116632288,-250.0,0.00015701,2]
[366202340,1750116632300,-600.0,0.00015701,4]
[366202341,1750116632311,-151.0,0.00015704,2]
[366202342,1750116632322,-151.0,0.00015706,2]
[366202343,1750116632334,-151.0,0.00015707,2]
[366202344,1750116632344,-151.0,0.00015707,2]
[366202345,1750116632356,-300.0,0.00015794,2]
[366202346,1750116632367,-1000.0,0.000159,2]
[366202347,1750116632378,-150.0,0.00015908,2]
[366202348,1750116632389,-1200.0,0.0001591,2]
[366202349,1750116632400,-1957.856,0.00015911,2]
[366202350,1750116632411,-207.4,0.00015911,2]
[366202351,1750116632421,-150.0,0.00015914,2]
[366202352,1750116632432,-160.2288472,0.0001592,2]
[366202353,1750116632443,-150.0,0.00015931,2]
[366202354,1750116632454,-150.0,0.00015945,2]
[366202355,1750116632465,-2097.56555167,0.00015966,2]
[366202356,1750116632475,-1676.3769,0.00015981,2]
[366202357,1750116632486,-151.0,0.0001599,2]
[366202358,1750116632496,-385.05867727,0.0001599,2]
[366202359,1750116632508,-212.348748,0.00015996,2]
[366202360,1750116632519,-289.969451,0.00015996,2]
[366202361,1750116632529,-199.036576,0.00015996,2]
[366202362,1750116632540,-159.99973,0.00015996,2]
[366202363,1750116632551,-212.348748,0.00015998,2]
[366202364,1750116632562,-289.969451,0.00015998,2]
[366202365,1750116632571,-1000.0,0.00015999,2]
[366202366,1750116632582,-212.348748,0.00015999,2]
[366202367,1750116632592,-289.969451,0.00015999,2]
[366202368,1750116632604,-812.19851155,0.00015999,2]
[366202369,1750116632615,-300.0,0.00015999,2]
[366202370,1750116632625,-8371.91,0.00016,2]
[366202371,1750116632635,-8371.91,0.00016,2]
[366202373,1750116632646,-8371.91,0.00016,2]
[366202376,1750116632656,-8371.91,0.00016,2]
[366202377,1750116632666,-8371.91,0.00016,2]
[366202378,1750116632676,-6951.49327977,0.00016,2]
[366202379,1750116632686,-1000.0,0.00016013,2]
[366202380,1750116632703,-491.0,0.0001602,2]
[366202381,1750116632713,-189.24,0.00016032,2]
[366202382,1750116632724,-868.48676193,0.00016043,2]
[366202383,1750116632734,-354.0,0.0001605,2]
[366202384,1750116632745,-174.0,0.00016052,2]
[366202385,1750116632756,-212.348748,0.00016056,2]
[366202386,1750116632766,-289.969451,0.00016056,2]
[366202387,1750116632777,-572.0,0.00016064,2]
[366202388,1750116632788,-181.0,0.00016064,2]
[366202389,1750116632801,-490.0,0.00016079,2]
[366202390,1750116632812,-490.0,0.00016079,2]
[366202391,1750116632822,-490.0,0.00016079,2]
[366202392,1750116632834,-490.0,0.00016079,2]
[366202393,1750116632845,-490.0,0.00016079,2]
[366202394,1750116632856,-490.0,0.00016079,2]
[366202395,1750116632867,-490.0,0.00016079,2]
[366202396,1750116632878,-490.0,0.00016079,2]
[366202397,1750116632890,-490.0,0.00016079,2]
[366202398,1750116632901,-490.0,0.00016079,2]
[366202399,1750116632911,-490.0,0.00016079,2]
[366202400,1750116632922,-490.0,0.00016079,2]
[366202401,1750116632932,-490.0,0.00016079,2]
[366202402,1750116632943,-490.0,0.00016079,2]
[366202403,1750116632953,-490.0,0.00016079,2]
[366202404,1750116632964,-535.42,0.00016079,2]
[366202405,1750116632975,-490.0,0.00016079,2]
[366202406,1750116632985,-490.0,0.00016079,2]
[366202407,1750116632996,-490.0,0.00016079,2]
[366202408,1750116633009,-490.0,0.00016079,2]
[366202409,1750116633020,-490.0,0.00016079,2]
[366202410,1750116633031,-490.0,0.00016079,2]
[366202411,1750116633042,-490.0,0.00016079,2]
[366202412,1750116633056,-490.0,0.00016079,2]
[366202413,1750116633067,-490.0,0.00016079,2]
[366202414,1750116633078,-471.98,0.00016079,2]
[366202415,1750116633089,-233.43,0.00016079,2]
[366202416,1750116633100,-490.0,0.00016079,2]
[366202417,1750116633111,-490.0,0.00016079,2]
[366202418,1750116633123,-490.0,0.00016079,2]
[366202419,1750116633141,-490.0,0.00016079,2]
[366202420,1750116633154,-490.0,0.00016079,2]
[366202421,1750116633166,-168.0,0.00016085,2]
[366202422,1750116633177,-150.0,0.00016095,2]
[366202423,1750116633189,-1368.0,0.00016099,2]
[366202424,1750116633200,-1164.67,0.000161,2]
[366202425,1750116633212,-354.78,0.000161,2]
[366202426,1750116633223,-554.62430015,0.000161,2]
[366202427,1750116633234,-554.62429998,0.000161,2]
[366202428,1750116633245,-554.62429998,0.000161,2]
[366202429,1750116633257,-554.62429998,0.000161,2]
[366202430,1750116633269,-554.62429998,0.000161,2]
[366202431,1750116633280,-554.62429998,0.000161,2]
[366202432,1750116633292,-150.0,0.00016104,2]
[366202433,1750116633307,-554.62429998,0.00016107,2]
[366202434,1750116633319,-150.0,0.00016114,2]
[366202435,1750116633331,-2500.0,0.00016119,2]
[366202436,1750116633343,-3674.68613025,0.00016119,2]
[366202437,1750116633354,-156.55935743,0.00016119,2]
[366202438,1750116633365,-482.3436,0.0001612,2]
[366202439,1750116633376,-554.62429998,0.00016141,2]
[366202440,1750116633388,-160.94112461,0.00016144,2]
[366202441,1750116633400,-4363.8843,0.00016144,2]
[366202442,1750116633411,-212.348748,0.00016158,2]
[366202443,1750116633423,-289.969451,0.00016158,2]
[366202444,1750116633434,-150.0,0.00016158,2]
[366202445,1750116633444,-212.348748,0.0001616,2]
[366202446,1750116633456,-289.969451,0.0001616,2]
[366202447,1750116633468,-833.8156298,0.00016167,2]
[366202448,1750116633480,-554.62429998,0.00016176,2]
[366202449,1750116633491,-282.78,0.000162,2]
[366202450,1750116633502,-797.51,0.000162,2]
[366202451,1750116633513,-923.24,0.000162,2]
[366202452,1750116633523,-326.84,0.000162,2]
[366202453,1750116633534,-150.0,0.000162,2]
[366202454,1750116633545,-150.0,0.000162,2]
[366202455,1750116633559,-3674.6861302,0.00016206,2]
[366202456,1750116633570,-167.69,0.0001621,2]
[366202457,1750116633581,-554.62429998,0.0001621,2]
[366202458,1750116633593,-490.0,0.00016219,2]
[366202459,1750116633604,-490.94621554,0.00016219,2]
[366202460,1750116633615,-490.0,0.00016219,2]
[366202461,1750116633627,-528.43517156,0.00016219,2]
[366202462,1750116633639,-492.39189544,0.00016219,2]
[366202463,1750116633650,-490.0,0.00016219,2]
[366202464,1750116633661,-490.0,0.00016219,2]
[366202465,1750116633671,-490.69599194,0.00016219,2]
[366202466,1750116633682,-490.0,0.00016219,2]
[366202467,1750116633694,-492.48799344,0.00016219,2]
[366202468,1750116633705,-490.0,0.00016219,2]
[366202469,1750116633715,-490.0,0.00016219,2]
[366202470,1750116633725,-490.0,0.00016219,2]
[366202471,1750116633736,-490.0,0.00016219,2]
[366202472,1750116633747,-490.0,0.00016219,2]
[366202473,1750116633757,-490.0,0.00016219,2]
[366202474,1750116633768,-490.0,0.00016219,2]
[366202475,1750116633779,-490.0,0.00016219,2]
[366202476,1750116633790,-532.37610694,0.00016219,2]
[366202477,1750116633803,-490.0,0.00016219,2]
[366202478,1750116633814,-490.0,0.00016219,2]
[366202479,1750116633824,-490.0,0.00016219,2]
[366202480,1750116633835,-490.0,0.00016219,2]
[366202481,1750116633846,-490.0,0.00016219,2]
[366202482,1750116633857,-559.26439644,0.00016219,2]
[366202483,1750116633868,-490.0,0.00016219,2]
[366202484,1750116633878,-490.0,0.00016219,2]
[366202485,1750116633888,-488.82458474,0.00016219,2]
[366202486,1750116633899,-490.0,0.00016219,2]
[366202487,1750116633909,-490.0,0.00016219,2]
[366202488,1750116633920,-490.0,0.00016219,2]
[366202489,1750116633931,-635.1,0.00016219,2]
[366202490,1750116633941,-210.0,0.00016219,2]
[366202491,1750116633952,-490.0,0.00016219,2]
[366202492,1750116633963,-252.00985878,0.00016219,2]
[366202493,1750116633974,-491.59747736,0.00016219,2]
[366202494,1750116633984,-154.56,0.00016219,2]
[366202495,1750116633994,-490.0,0.00016219,2]
[366202496,1750116634007,-614.08852907,0.00016219,2]
[366202497,1750116634017,-490.0,0.00016219,2]
[366202498,1750116634027,-490.0,0.00016219,2]
[366202499,1750116634037,-490.0,0.00016219,2]
[366202500,1750116634051,-490.0,0.00016219,2]
[366202501,1750116634062,-492.19731726,0.00016219,2]
[366202502,1750116634072,-633.52088479,0.00016219,2]
[366202503,1750116634083,-420.11574649,0.00016219,2]
[366202504,1750116634095,-319.21512011,0.00016219,2]
[366202505,1750116634105,-490.0,0.00016219,2]
[366202506,1750116634115,-490.0,0.00016219,2]
[366202507,1750116634251,-490.0,0.00016219,2]
[366202508,1750116634262,-1238.91,0.00016219,2]
[366202509,1750116634272,-567.25,0.00016219,2]
[366202510,1750116634282,-490.0,0.00016219,2]
[366202511,1750116634292,-490.0,0.00016219,2]
[366202512,1750116634303,-1035.4,0.00016219,2]
[366202513,1750116634314,-490.0,0.00016219,2]
[366202514,1750116634323,-490.0,0.00016219,2]
[366202515,1750116634334,-490.0,0.00016219,2]
[366202516,1750116634344,-490.0,0.00016219,2]
[366202517,1750116634355,-596.48,0.00016219,2]
[366202518,1750116634365,-490.0,0.00016219,2]
[366202519,1750116634375,-490.0,0.00016219,2]
[366202520,1750116634385,-490.0,0.00016219,2]
[366202521,1750116634395,-490.0,0.00016219,2]
[366202522,1750116634405,-490.0,0.00016219,2]
[366202523,1750116634414,-490.0,0.00016219,2]
[366202524,1750116634424,-561.83,0.00016219,2]
[366202525,1750116634433,-490.0,0.00016219,2]
[366202526,1750116634444,-3771.91,0.00016219,2]
[366202527,1750116634454,-490.0,0.00016219,2]
[366202528,1750116634465,-490.0,0.00016219,2]
[366202529,1750116634475,-490.0,0.00016219,2]
[366202530,1750116634485,-1050.49,0.00016219,2]
[366202531,1750116634496,-490.0,0.00016219,2]
[366202532,1750116634506,-1715.78,0.00016219,2]
[366202533,1750116634516,-490.0,0.00016219,2]
[366202534,1750116634526,-490.0,0.00016219,2]
[366202535,1750116634536,-807.51,0.00016219,2]
[366202536,1750116634546,-714.56,0.00016219,2]
[366202537,1750116634557,-490.0,0.00016219,2]
[366202538,1750116634567,-490.0,0.00016219,2]
[366202539,1750116634578,-1935.41,0.00016219,2]
[366202540,1750116634588,-490.0,0.00016219,2]
[366202541,1750116634597,-490.0,0.00016219,2]
[366202542,1750116634607,-490.0,0.00016219,2]
[366202543,1750116634617,-490.0,0.00016219,2]
[366202544,1750116634628,-490.0,0.00016219,2]
[366202545,1750116634638,-490.0,0.00016219,2]
[366202546,1750116634648,-680.58,0.00016219,2]
[366202547,1750116634658,-490.0,0.00016219,2]
[366202548,1750116634667,-490.0,0.00016219,2]
[366202549,1750116634677,-490.0,0.00016219,2]
[366202550,1750116634687,-490.0,0.00016219,2]
[366202551,1750116634697,-568.20690328,0.00016219,2]
[366202552,1750116634707,-490.0,0.00016219,2]
[366202553,1750116634717,-593.97,0.00016219,2]
[366202554,1750116634727,-490.0,0.00016219,2]
[366202555,1750116634736,-490.0,0.00016219,2]
[366202556,1750116634746,-490.0,0.00016219,2]
[366202557,1750116634757,-490.0,0.00016219,2]
[366202558,1750116634767,-490.0,0.00016219,2]
[366202559,1750116634777,-933.79,0.00016219,2]
[366202560,1750116634786,-490.0,0.00016219,2]
[366202561,1750116634795,-490.0,0.00016219,2]
[366202562,1750116634806,-490.0,0.00016219,2]
[366202563,1750116634815,-606.85,0.00016219,2]
[366202564,1750116634825,-300.72,0.00016219,2]
[366202565,1750116634834,-558.15,0.00016219,2]
[366202566,1750116634843,-773.63,0.00016219,2]
[366202567,1750116634852,-490.0,0.00016219,2]
[366202568,1750116634862,-556.87,0.00016219,2]
[366202569,1750116634876,-490.0,0.00016219,2]
[366202570,1750116634886,-490.0,0.00016219,2]
[366202571,1750116634896,-490.0,0.00016219,2]
[366202572,1750116634906,-490.0,0.00016219,2]
[366202573,1750116634916,-490.0,0.00016219,2]
[366202574,1750116634926,-490.0,0.00016219,2]
[366202575,1750116634935,-632.8,0.00016219,2]
[366202576,1750116634946,-490.0,0.00016219,2]
[366202577,1750116634956,-490.0,0.00016219,2]
[366202578,1750116634965,-490.0,0.00016219,2]
[366202579,1750116634975,-490.0,0.00016219,2]
[366202580,1750116634984,-490.0,0.00016219,2]
[366202581,1750116634994,-490.0,0.00016219,2]
[366202582,1750116635003,-490.0,0.00016219,2]
[366202583,1750116635016,-601.08,0.00016219,2]
[366202584,1750116635026,-490.0,0.00016219,2]
[366202585,1750116635036,-490.0,0.00016219,2]
[366202586,1750116635046,-490.0,0.00016219,2]
[366202587,1750116635056,-1230.38,0.00016219,2]
[366202588,1750116635066,-984.46663457,0.00016219,2]
[366202589,1750116635082,-2289.83336543,0.00016219,2]
[366202590,1750116635092,-31653.0,0.0001622,2]
[366202591,1750116635102,-212.348748,0.00016221,2]
[366202592,1750116635111,-289.969451,0.00016221,2]
[366202593,1750116635121,-3679.4,0.00016233,2]
[366202594,1750116635130,-490.0,0.00016242,2]
[366202595,1750116635141,-490.0,0.00016242,2]
[366202596,1750116635150,-490.0,0.00016242,2]
[366202597,1750116635160,-490.0,0.00016242,2]
[366202598,1750116635170,-770.61,0.00016242,2]
[366202599,1750116635180,-490.0,0.00016242,2]
[366202600,1750116635189,-500.76,0.00016242,2]
[366202601,1750116635199,-1029.21,0.00016242,2]
[366202602,1750116635208,-490.0,0.00016242,2]
[366202603,1750116635218,-490.0,0.00016242,2]
[366202604,1750116635227,-1121.5,0.00016242,2]
[366202605,1750116635237,-490.0,0.00016242,2]
[366202606,1750116635247,-490.0,0.00016242,2]
[366202607,1750116635256,-490.0,0.00016242,2]
[366202608,1750116635266,-490.0,0.00016242,2]
[366202609,1750116635276,-490.0,0.00016242,2]
[366202610,1750116635286,-726.59,0.00016242,2]
[366202611,1750116635296,-490.0,0.00016242,2]
[366202612,1750116635307,-490.0,0.00016242,2]
[366202613,1750116635316,-490.0,0.00016242,2]
[366202614,1750116635335,-490.0,0.00016242,2]
[366202615,1750116635349,-446.00455581,0.00016242,2]
[366202616,1750116635359,-932.59,0.00016242,2]
[366202617,1750116635368,-490.0,0.00016242,2]
[366202618,1750116635377,-490.0,0.00016242,2]
[366202619,1750116635388,-490.0,0.00016242,2]
[366202620,1750116635397,-490.0,0.00016242,2]
[366202621,1750116635407,-490.0,0.00016242,2]
[366202622,1750116635417,-490.0,0.00016242,2]
[366202623,1750116635426,-490.0,0.00016242,2]
[366202624,1750116635436,-490.0,0.00016242,2]
[366202625,1750116635446,-490.0,0.00016243,2]
[366202626,1750116635455,-490.0,0.00016243,2]
[366202627,1750116635465,-490.0,0.00016243,2]
[366202628,1750116635475,-490.0,0.00016243,2]
[366202629,1750116635485,-490.0,0.00016243,2]
[366202630,1750116635495,-490.0,0.00016243,2]
[366202631,1750116635505,-490.0,0.00016243,2]
[366202632,1750116635515,-490.0,0.00016243,2]
[366202633,1750116635525,-490.0,0.00016243,2]
[366202634,1750116635535,-506.56,0.00016243,2]
[366202635,1750116635545,-405.74,0.00016243,2]
[366202636,1750116635555,-490.0,0.00016243,2]
[366202637,1750116635565,-490.0,0.00016243,2]
[366202638,1750116635575,-490.0,0.00016243,2]
[366202639,1750116635586,-490.0,0.00016243,2]
[366202640,1750116635596,-490.0,0.00016243,2]
[366202641,1750116635606,-490.0,0.00016243,2]
[366202642,1750116635616,-490.0,0.00016243,2]
[366202643,1750116635627,-363.82,0.00016243,2]
[366202644,1750116635637,-490.0,0.00016243,2]
[366202645,1750116635647,-490.0,0.00016243,2]
[366202646,1750116635657,-490.0,0.00016243,2]
[366202647,1750116635667,-490.0,0.00016243,2]
[366202648,1750116635677,-490.0,0.00016243,2]
[366202649,1750116635687,-549.98,0.00016243,2]
[366202650,1750116635697,-490.0,0.00016243,2]
[366202651,1750116635707,-490.0,0.00016243,2]
[366202652,1750116635717,-383.96,0.00016243,2]
[366202653,1750116635727,-241.3,0.00016243,2]
[366202654,1750116635737,-490.0,0.00016243,2]
[366202655,1750116635747,-490.0,0.00016243,2]
[366202656,1750116635757,-490.0,0.00016243,2]
[366202657,1750116635773,-408.39095278,0.00016243,2]
[366202658,1750116635783,-490.0,0.00016243,2]
[366202659,1750116635793,-490.0,0.00016243,2]
[366202660,1750116635804,-490.0,0.00016243,2]
[366202661,1750116635814,-490.0,0.00016243,2]
[366202662,1750116635824,-490.0,0.00016243,2]
[366202663,1750116635835,-490.0,0.00016243,2]
[366202664,1750116635845,-490.0,0.00016243,2]
[366202665,1750116635855,-490.0,0.00016243,2]
[366202666,1750116635864,-490.0,0.00016243,2]
[366202667,1750116635874,-490.0,0.00016243,2]
[366202668,1750116635885,-490.0,0.00016243,2]
[366202669,1750116635895,-490.0,0.00016243,2]
[366202670,1750116635905,-490.0,0.00016243,2]
[366202671,1750116635915,-490.0,0.00016243,2]
[366202672,1750116635925,-473.40349183,0.00016243,2]
[366202673,1750116635968,-16.59650817,0.00016243,2]
[366202674,1750116635978,-490.0,0.00016243,2]
[366202675,1750116635988,-490.0,0.00016243,2]
[366202676,1750116635998,-490.0,0.00016243,2]
[366202677,1750116636009,-490.0,0.00016243,2]
[366202678,1750116636019,-490.0,0.00016243,2]
[366202679,1750116636030,-490.0,0.00016243,2]
[366202680,1750116636040,-490.0,0.00016243,2]
[366202681,1750116636049,-490.0,0.00016243,2]
[366202682,1750116636060,-500.0,0.00016243,2]
[366202683,1750116636070,-623.44,0.00016243,2]
[366202684,1750116636080,-490.0,0.00016243,2]
[366202685,1750116636090,-490.0,0.00016243,2]
[366202686,1750116636100,-992.87,0.00016243,2]
[366202687,1750116636110,-490.0,0.00016243,2]
[366202688,1750116636120,-590.63,0.00016243,2]
[366202689,1750116636129,-490.0,0.00016243,2]
[366202690,1750116636139,-490.0,0.00016243,2]
[366202691,1750116636149,-915.14,0.00016243,2]
[366202692,1750116636160,-490.0,0.00016243,2]
[366202693,1750116636170,-1214.76,0.00016243,2]
[366202694,1750116636180,-490.0,0.00016243,2]
[366202695,1750116636189,-490.0,0.00016243,2]
[366202696,1750116636199,-490.0,0.00016243,2]
[366202697,1750116636209,-187.49,0.00016243,2]
[366202698,1750116636225,-307.74,0.00016243,2]
[366202699,1750116636235,-490.0,0.00016243,2]
[366202700,1750116636245,-490.0,0.00016243,2]
[366202701,1750116636255,-2740.08,0.00016243,2]
[366202702,1750116636264,-313.65,0.00016243,2]
[366202703,1750116636273,-217.35,0.00016243,2]
[366202704,1750116636283,-250.24,0.00016243,2]
[366202705,1750116636293,-490.0,0.00016243,2]
[366202706,1750116636305,-490.0,0.00016243,2]
[366202707,1750116636315,-490.0,0.00016243,2]
[366202708,1750116636325,-415.51,0.00016243,2]
[366202709,1750116636335,-490.0,0.00016243,2]
[366202710,1750116636345,-490.0,0.00016243,2]
[366202711,1750116636354,-490.0,0.00016243,2]
[366202712,1750116636366,-490.0,0.00016243,2]
[366202713,1750116636376,-490.0,0.00016243,2]
[366202714,1750116636386,-490.0,0.00016243,2]
[366202715,1750116636396,-3122.34,0.00016243,2]
[366202716,1750116636407,-490.0,0.00016243,2]
[366202717,1750116636416,-557.14,0.00016243,2]
[366202718,1750116636426,-490.0,0.00016243,2]
[366202719,1750116636435,-490.0,0.00016243,2]
[366202720,1750116636446,-505.08,0.00016243,2]
[366202721,1750116636456,-490.0,0.00016243,2]
[366202722,1750116636467,-490.0,0.00016243,2]
[366202723,1750116636476,-490.0,0.00016243,2]